fUSD/lending_fUSD_20240319
["ID","MTS","AMOUNT","RATE_DAILY","PERIOD"]
[319581809,1710881467760,-1231.32,0.0003041,2]
[319581810,1710881467770,-737.73,0.0003041,2]
[319581811,1710881467780,-500.0,0.0003041,2]
[319581812,1710881467789,-1610.5,0.0003041,2]
[319581813,1710881467799,-893.71,0.0003041,2]
[319581814,1710881467809,-885.8,0.0003041,2]
[319581815,1710881467819,-1831.61,0.0003041,2]
[319581816,1710881467829,-500.0,0.0003041,2]
[319581817,1710881467839,-500.0,0.0003041,2]
[319581818,1710881467849,-3289.9,0.0003041,2]
[319581819,1710881467859,-500.0,0.0003041,2]
[319581820,1710881467869,-929.57,0.0003041,2]
[319581821,1710881467878,-500.0,0.0003041,2]
[319581822,1710881467888,-500.0,0.0003041,2]
[319581823,1710881467897,-500.0,0.0003041,2]
[319581824,1710881467907,-500.0,0.0003041,2]
[319581825,1710881467916,-1737.11,0.0003041,2]
[319581826,1710881467925,-672.07,0.0003041,2]
[319581827,1710881467935,-1482.05,0.0003041,2]
[319581828,1710881467944,-1178.56,0.0003041,2]
[319581829,1710881467953,-521.59184694,0.0003041,2]
[319581830,1710881467963,-500.0,0.0003041,2]
[319581831,1710881467972,-500.0,0.0003041,2]
[319581832,1710881467980,-500.0,0.0003041,2]
[319581833,1710881467989,-1760.25,0.0003041,2]
[319581834,1710881467998,-700.52,0.0003041,2]
[319581835,1710881468008,-512.46411686,0.0003041,2]
[319581836,1710881468016,-500.0,0.0003041,2]
[319581837,1710881468025,-1117.48,0.0003041,2]
[319581838,1710881468034,-500.0,0.0003041,2]
[319581839,1710881468043,-500.0,0.0003041,2]
[319581840,1710881468052,-500.0,0.0003041,2]
[319581841,1710881468061,-500.0,0.0003041,2]
[319581842,1710881468071,-500.0,0.0003041,2]
[319581843,1710881468080,-675.84,0.0003041,2]
[319581844,1710881468089,-501.68128859,0.0003041,2]
[319581845,1710881468097,-500.0,0.0003041,2]
[319581846,1710881468106,-500.0,0.0003041,2]
[319581847,1710881468115,-1841.76,0.0003041,2]
[319581848,1710881468124,-500.0,0.0003041,2]
[319581849,1710881468133,-500.0,0.0003041,2]
[319581850,1710881468142,-517.4,0.0003041,2]
[319581851,1710881468151,-2580.8,0.0003041,2]
[319581852,1710881468160,-500.0,0.0003041,2]
[319581853,1710881468169,-617.63,0.0003041,2]
[319581854,1710881468178,-564.51226921,0.0003041,2]
[319581855,1710881468189,-500.0,0.0003041,2]
[319581856,1710881468198,-1044.02,0.0003041,2]
[319581857,1710881468207,-3057.51,0.0003041,2]
[319581858,1710881468216,-635.931743,0.0003041,2]
[319581859,1710881468225,-500.0,0.0003041,2]
[319581860,1710881468234,-502.99225312,0.0003041,2]
[319581861,1710881468242,-1550.65,0.0003041,2]
[319581862,1710881468251,-763.21,0.0003041,2]
[319581863,1710881468260,-2323.69,0.0003041,2]
[319581864,1710881468269,-1459.18,0.0003041,2]
[319581865,1710881468278,-5271.88,0.0003041,2]
[319581866,1710881468287,-500.0,0.0003041,2]
[319581867,1710881468295,-500.0,0.0003041,2]
[319581868,1710881468304,-500.0,0.0003041,2]
[319581869,1710881468314,-404.53685316,0.0003041,2]
[319581870,1710881468322,-500.0,0.0003041,2]
[319581871,1710881468332,-1235.28,0.0003041,2]
[319581872,1710881468557,-1245.93,0.0003041,2]
[319581873,1710881468597,-2172.16,0.0003041,2]
[319581874,1710881468607,-990.18,0.0003041,2]
[319581875,1710881468616,-611.08,0.0003041,2]
[319581876,1710881468625,-552.15,0.0003041,2]
[319581877,1710881468635,-531.32,0.0003041,2]
[319581878,1710881468645,-500.0,0.0003041,2]
[319581879,1710881468654,-588.011817,0.0003041,7]
[319581880,1710881468663,-588.011817,0.0003041,7]
[319581881,1710881468672,-588.011817,0.0003041,7]
[319581882,1710881468683,-588.011817,0.0003041,7]
[319581883,1710881468692,-500.0,0.0003041,2]
[319581884,1710881468702,-588.011817,0.0003041,7]
[319581885,1710881468711,-1179.83,0.0003041,2]
[319581886,1710881468722,-588.011817,0.0003041,7]
[319581887,1710881468732,-500.0,0.0003041,2]
[319581888,1710881468741,-588.011817,0.0003041,7]
[319581889,1710881468750,-588.011813,0.0003041,7]
[319581890,1710881468759,-500.0,0.0003041,2]
[319581891,1710881468768,-1154.96,0.0003041,2]
[319581892,1710881468777,-1895.55,0.0003041,2]
[319581893,1710881468786,-817.04,0.0003041,2]
[319581894,1710881468797,-500.0,0.0003041,2]
[319581895,1710881468810,-3374.01,0.0003041,2]
[319581896,1710881468821,-983.51,0.0003041,2]
[319581897,1710881468833,-500.0,0.0003041,2]
[319581898,1710881468843,-500.0,0.0003041,2]
[319581899,1710881468854,-500.0,0.0003041,2]
[319581900,1710881468865,-1015.51,0.0003041,2]
[319581901,1710881468878,-500.0,0.0003041,2]
[319581902,1710881468892,-4859.77,0.0003041,2]
[319581903,1710881468901,-500.0,0.0003041,2]
[319581904,1710881468910,-880.13,0.0003041,2]
[319581905,1710881468919,-2751.56,0.0003041,2]
[319581906,1710881468935,-151.0,0.0003041,7]
[319581907,1710881468944,-630.85,0.0003041,2]
[319581908,1710881468962,-572.27,0.0003041,2]
[319581909,1710881468974,-1786.16,0.0003041,2]
[319581910,1710881468983,-500.0,0.0003041,2]
[319581911,1710881469000,-151.0,0.0003041,7]
[319581912,1710881469010,-558.47,0.0003041,2]
[319581913,1710881469019,-151.0,0.0003041,7]
[319581914,1710881469031,-151.0,0.0003041,7]
[319581915,1710881469043,-1088.13,0.0003041,2]
[319581916,1710881469053,-500.0,0.0003041,2]
[319581917,1710881469062,-1584.4,0.0003041,2]
[319581918,1710881469072,-2427.19,0.0003041,2]
[319581919,1710881469081,-1100.44,0.0003041,2]
[319581920,1710881469091,-500.0,0.0003041,2]
[319581921,1710881469100,-879.5,0.0003041,2]
[319581922,1710881469109,-500.0,0.0003041,2]
[319581923,1710881469118,-500.0,0.0003041,2]
[319581924,1710881469127,-500.0,0.0003041,2]
[319581925,1710881469135,-865.88,0.0003041,2]
[319581926,1710881469151,-500.0,0.0003041,2]
[319581927,1710881469161,-764.77,0.0003041,2]
[319581928,1710881469171,-1762.31,0.0003041,2]
[319581929,1710881469180,-500.0,0.0003041,2]
[319581930,1710881469190,-500.0,0.0003041,2]
[319581931,1710881469199,-500.0,0.0003041,2]
[319581932,1710881469209,-500.0,0.0003041,2]
[319581933,1710881469218,-500.0,0.0003041,2]
[319581934,1710881469227,-2232.06,0.0003041,2]
[319581935,1710881469236,-505.18246713,0.0003041,2]
[319581936,1710881469245,-1259.79,0.0003041,2]
[319581937,1710881469254,-852.94,0.0003041,2]
[319581938,1710881469263,-1721.71,0.0003041,2]
[319581939,1710881469271,-500.0,0.0003041,2]
[319581940,1710881469280,-500.0,0.0003041,2]
[319581941,1710881469289,-535.95,0.0003041,2]
[319581942,1710881469300,-2327.27,0.0003041,2]
[319581943,1710881469309,-2889.04,0.0003041,2]
[319581944,1710881469317,-1051.21,0.0003041,2]
[319581945,1710881469326,-1487.08,0.0003041,2]
[319581946,1710881469346,-1028.7,0.0003041,2]
[319581947,1710881469355,-501.42608044,0.0003041,2]
[319581948,1710881469374,-500.0,0.0003041,2]
[319581949,1710881469384,-242.6957552,0.0003041,2]
[319581950,1710881469393,-500.0,0.0003041,2]
[319581951,1710881469403,-500.0,0.0003041,2]
[319581952,1710881469412,-573.525003,0.0003041,7]
[319581953,1710881469424,-573.525003,0.0003041,7]
[319581954,1710881469437,-573.525003,0.0003041,7]
[319581955,1710881469451,-573.525003,0.0003041,7]
[319581956,1710881469470,-500.0,0.0003041,2]
[319581957,1710881469485,-500.0,0.0003041,2]
[319581958,1710881469494,-1293.89,0.0003041,2]
[319581959,1710881469504,-640.88,0.0003041,2]
[319581960,1710881469522,-500.0,0.0003041,2]
[319581961,1710881469532,-337.20126,0.0003041,7]
[319581962,1710881469547,-337.20126,0.0003041,7]
[319581963,1710881469561,-337.20126,0.0003041,7]
[319581964,1710881469571,-1317.37,0.0003041,2]
[319581965,1710881469582,-573.525003,0.0003041,7]
[319581966,1710881469592,-337.20126,0.0003041,7]
[319581967,1710881469602,-573.525003,0.0003041,7]
[319581968,1710881469612,-1305.42,0.0003041,2]
[319581969,1710881469622,-500.0,0.0003041,2]
[319581970,1710881469632,-573.525003,0.0003041,7]
[319581971,1710881469651,-598.73,0.0003041,2]
[319581972,1710881469663,-573.524997,0.0003041,7]
[319581973,1710881469673,-1410.04,0.0003041,2]
[319581974,1710881469684,-337.20126,0.0003041,7]
[319581975,1710881469694,-337.20126,0.0003041,7]
[319581976,1710881469704,-337.20126,0.0003041,7]
[319581977,1710881469713,-500.0,0.0003041,2]
[319581978,1710881469723,-978.62,0.0003041,2]
[319581979,1710881469732,-337.201262,0.0003041,7]
[319581980,1710881469742,-500.0,0.0003041,2]
[319581981,1710881469752,-500.0,0.0003041,2]
[319581982,1710881469762,-500.0,0.0003041,2]
[319581983,1710881469771,-1338.19,0.0003041,2]
[319581984,1710881469783,-500.0,0.0003041,2]
[319581985,1710881469793,-1507.1,0.0003041,2]
[319581986,1710881469803,-1303.65,0.0003041,2]
[319581987,1710881469814,-500.0,0.0003041,2]
[319581988,1710881469824,-2195.62,0.0003041,2]
[319581989,1710881469834,-500.0,0.0003041,2]
[319581990,1710881469845,-5313.16,0.0003041,2]
[319581991,1710881469855,-500.0,0.0003041,2]
[319581992,1710881469865,-500.0,0.0003041,2]
[319581993,1710881469875,-500.0,0.0003041,2]
[319581994,1710881469885,-500.0,0.0003041,2]
[319581995,1710881469895,-678.26,0.0003041,2]
[319581996,1710881469905,-500.0,0.0003041,2]
[319581997,1710881469915,-500.0,0.0003041,2]
[319581998,1710881469925,-500.0,0.0003041,2]
[319581999,1710881469937,-500.0,0.0003041,2]
[319582000,1710881469946,-500.0,0.0003041,2]
[319582001,1710881469956,-500.0,0.0003041,2]
[319582002,1710881469967,-1847.69,0.0003041,2]
[319582003,1710881469977,-1849.78,0.0003041,2]
[319582004,1710881469987,-381.091523,0.0003041,7]
[319582005,1710881469998,-500.0,0.0003041,2]
[319582006,1710881470008,-381.091523,0.0003041,7]
[319582007,1710881470018,-1435.23,0.0003041,2]
[319582008,1710881470032,-381.091523,0.0003041,7]
[319582009,1710881470041,-381.091523,0.0003041,7]
[319582010,1710881470051,-546.017675,0.0003041,7]
[319582011,1710881470060,-1671.55,0.0003041,2]
[319582012,1710881470069,-546.017675,0.0003041,7]
[319582013,1710881470078,-546.017675,0.0003041,7]
[319582014,1710881470088,-500.0,0.0003041,2]
[319582015,1710881470097,-546.017675,0.0003041,7]
[319582016,1710881470107,-381.091523,0.0003041,7]
[319582017,1710881470117,-381.091523,0.0003041,7]
[319582018,1710881470127,-381.091523,0.0003041,7]
[319582019,1710881470136,-381.091529,0.0003041,7]
[319582020,1710881470145,-500.0,0.0003041,2]
[319582021,1710881470156,-1213.03,0.0003041,2]
[319582022,1710881470166,-500.0,0.0003041,2]
[319582023,1710881470176,-500.0,0.0003041,2]
[319582024,1710881470188,-546.017675,0.0003041,7]
[319582025,1710881470197,-1398.353827,0.0003041,7]
[319582026,1710881470207,-546.017675,0.0003041,7]
[319582027,1710881470217,-1398.353827,0.0003041,7]
[319582028,1710881470226,-546.017675,0.0003041,7]
[319582029,1710881470236,-500.0,0.0003041,2]
[319582030,1710881470245,-1398.353827,0.0003041,7]
[319582031,1710881470255,-546.017679,0.0003041,7]
[319582032,1710881470265,-1398.353827,0.0003041,7]
[319582033,1710881470275,-1828.28,0.0003041,2]
[319582034,1710881470284,-500.0,0.0003041,2]
[319582035,1710881470294,-957.5,0.0003041,2]
[319582036,1710881470304,-618.66,0.0003041,2]
[319582037,1710881470315,-1200.49,0.0003041,2]
[319582038,1710881470324,-1417.25,0.0003041,2]
[319582039,1710881470335,-1398.353827,0.0003041,7]
[319582040,1710881470345,-1398.353827,0.0003041,7]
[319582041,1710881470354,-1398.353827,0.0003041,7]
[319582042,1710881470364,-1629.35,0.0003041,2]
[319582043,1710881470374,-1398.353835,0.0003041,7]
[319582044,1710881470384,-500.0,0.0003041,2]
[319582045,1710881470395,-536.98,0.0003041,2]
[319582046,1710881470405,-500.0,0.0003041,2]
[319582047,1710881470414,-1387.22,0.0003041,2]
[319582048,1710881470428,-500.0,0.0003041,2]
[319582049,1710881470442,-500.0,0.0003041,2]
[319582050,1710881470452,-500.0,0.0003041,2]
[319582051,1710881470461,-500.0,0.0003041,2]
[319582052,1710881470473,-825.88,0.0003041,2]
[319582053,1710881470482,-500.0,0.0003041,2]
[319582054,1710881470492,-1721.78,0.0003041,2]
[319582055,1710881470502,-801.97,0.0003041,2]
[319582056,1710881470513,-738.24,0.0003041,2]
[319582057,1710881470522,-500.0,0.0003041,2]
[319582058,1710881470532,-307.34428,0.0003041,7]
[319582059,1710881470542,-307.34428,0.0003041,7]
[319582060,1710881470551,-307.34428,0.0003041,7]
[319582061,1710881470561,-500.0,0.0003041,2]
[319582062,1710881470572,-307.34428,0.0003041,7]
[319582063,1710881470581,-500.0,0.0003041,2]
[319582064,1710881470592,-599.66158,0.0003041,7]
[319582065,1710881470602,-307.34428,0.0003041,7]
[319582066,1710881470612,-1865.79,0.0003041,2]
[319582067,1710881470623,-307.34428,0.0003041,7]
[319582068,1710881470633,-599.66158,0.0003041,7]
[319582069,1710881470644,-1625.32,0.0003041,2]
[319582070,1710881470655,-599.66158,0.0003041,7]
[319582071,1710881470666,-500.0,0.0003041,2]
[319582072,1710881470676,-500.0,0.0003041,2]
[319582073,1710881470691,-599.66158,0.0003041,7]
[319582074,1710881470701,-599.66158,0.0003041,7]
[319582075,1710881470712,-599.661583,0.0003041,7]
[319582076,1710881470722,-523.92,0.0003041,2]
[319582077,1710881470733,-2734.71,0.0003041,2]
[319582078,1710881470743,-500.0,0.0003041,2]
[319582079,1710881470754,-152.218308,0.0003041,7]
[319582080,1710881470764,-500.0,0.0003041,2]
[319582081,1710881470774,-3047.5,0.0003041,2]
[319582082,1710881470785,-500.0,0.0003041,2]
[319582083,1710881470796,-629.16,0.0003041,2]
[319582084,1710881470806,-347.99708882,0.0003041,2]
[319582085,1710881470816,-500.0,0.0003041,2]
[319582086,1710881470826,-469.245876,0.0003041,2]
[319582087,1710881470836,-500.0,0.0003041,2]
[319582088,1710881470846,-500.0,0.0003041,2]
[319582089,1710881470856,-500.0,0.0003041,2]
[319582090,1710881470866,-1543.77,0.0003041,2]
[319582091,1710881470877,-500.0,0.0003041,2]
[319582092,1710881470887,-500.0,0.0003041,2]
[319582093,1710881470897,-4102.02,0.0003041,2]
[319582094,1710881470907,-320.17177,0.0003041,7]
[319582095,1710881470918,-320.17177,0.0003041,7]
[319582096,1710881470929,-2756.38,0.0003041,2]
[319582097,1710881470947,-320.17177,0.0003041,7]
[319582098,1710881470958,-500.0,0.0003041,2]
[319582099,1710881470969,-500.0,0.0003041,2]
[319582100,1710881470987,-320.17177,0.0003041,7]
[319582101,1710881471007,-320.17177,0.0003041,7]
[319582102,1710881471026,-500.0,0.0003041,2]
[319582103,1710881471043,-320.171769,0.0003041,7]
[319582104,1710881471060,-1359.55,0.0003041,2]
[319582105,1710881471078,-833.52,0.0003041,2]
[319582106,1710881471096,-2645.05,0.0003041,2]
[319582107,1710881471109,-2234.11,0.0003041,2]
[319582108,1710881471124,-500.0,0.0003041,2]
[319582109,1710881471140,-500.0,0.0003041,2]
[319582110,1710881471158,-500.0,0.0003041,2]
[319582111,1710881471172,-500.0,0.0003041,2]
[319582112,1710881471196,-2469.96,0.0003041,2]
[319582113,1710881471212,-2373.76,0.0003041,2]
[319582114,1710881471226,-500.0,0.0003041,2]
[319582115,1710881471239,-500.0,0.0003041,2]
[319582116,1710881471255,-505.95,0.0003041,2]
[319582117,1710881471272,-1038.15,0.0003041,2]
[319582118,1710881471289,-500.0,0.0003041,2]
[319582119,1710881471306,-500.0,0.0003041,2]
[319582120,1710881471318,-2426.03,0.0003041,2]
[319582121,1710881471330,-502.23,0.0003041,2]
[319582122,1710881471345,-500.0,0.0003041,2]
[319582123,1710881471359,-2035.59,0.0003041,2]
[319582124,1710881471373,-1743.29,0.0003041,2]
[319582125,1710881471386,-500.0,0.0003041,2]
[319582126,1710881471402,-3052.41,0.0003041,2]
[319582127,1710881471416,-500.0,0.0003041,2]
[319582128,1710881471430,-1202.98,0.0003041,2]
[319582129,1710881471455,-333.82157843,0.0003041,2]
[319582130,1710881471468,-500.0,0.0003041,2]
[319582131,1710881471482,-549.09,0.0003041,2]
[319582132,1710881471495,-459.58555298,0.0003041,2]
[319582133,1710881471509,-500.0,0.0003041,2]
[319582134,1710881471523,-621.20002833,0.0003041,2]
[319582135,1710881471562,-500.0,0.0003041,2]
[319582136,1710881471578,-523.78,0.0003041,2]
[319582137,1710881471595,-151.0,0.0003041,7]
[319582138,1710881471611,-705.54,0.0003041,2]
[319582139,1710881471627,-324.651821,0.0003041,7]
[319582140,1710881471642,-151.0,0.0003041,7]
[319582141,1710881471657,-1525.12,0.0003041,2]
[319582142,1710881471673,-324.651821,0.0003041,7]
[319582143,1710881471689,-151.0,0.0003041,7]
[319582144,1710881471704,-324.651821,0.0003041,7]
[319582145,1710881471719,-500.0,0.0003041,2]
[319582146,1710881471733,-500.0,0.0003041,2]
[319582147,1710881471748,-500.0,0.0003041,2]
[319582148,1710881471762,-151.0,0.0003041,7]
[319582149,1710881471777,-324.651821,0.0003041,7]
[319582150,1710881471791,-157.605827,0.0003041,7]
[319582151,1710881471805,-324.651821,0.0003041,7]
[319582152,1710881471820,-324.651825,0.0003041,7]
[319582153,1710881471835,-1377.25,0.0003041,2]
[319582154,1710881471849,-1273.681869,0.0003041,7]
[319582155,1710881471863,-1273.681869,0.0003041,7]
[319582156,1710881471877,-1273.681869,0.0003041,7]
[319582157,1710881471892,-500.0,0.0003041,2]
[319582158,1710881471906,-781.26,0.0003041,2]
[319582159,1710881471921,-500.0,0.0003041,2]
[319582160,1710881471942,-2920.99,0.0003041,2]
[319582161,1710881471956,-398.114035,0.0003041,7]
[319582162,1710881471970,-1273.681869,0.0003041,7]
[319582163,1710881471984,-398.114035,0.0003041,7]
[319582164,1710881471997,-398.114035,0.0003041,7]
[319582165,1710881472015,-500.0,0.0003041,2]
[319582166,1710881472029,-1273.681869,0.0003041,7]
[319582167,1710881472043,-1273.681863,0.0003041,7]
[319582168,1710881472056,-500.0,0.0003041,2]
[319582169,1710881472070,-398.114035,0.0003041,7]
[319582170,1710881472085,-165.894789,0.0003041,7]
[319582171,1710881472099,-398.114035,0.0003041,7]
[319582172,1710881472112,-165.894789,0.0003041,7]
[319582173,1710881472125,-3512.78,0.0003041,2]
[319582174,1710881472139,-165.894789,0.0003041,7]
[319582175,1710881472153,-165.894789,0.0003041,7]
[319582176,1710881472168,-2681.32,0.0003041,2]
[319582177,1710881472182,-165.894789,0.0003041,7]
[319582178,1710881472202,-165.894791,0.0003041,7]
[319582179,1710881472217,-500.0,0.0003041,2]
[319582180,1710881472232,-3812.88,0.0003041,2]
[319582181,1710881472246,-279.21739556,0.0003041,2]
[319582182,1710881472260,-500.0,0.0003041,2]
[319582183,1710881472274,-1684.02,0.0003041,2]
[319582184,1710881472288,-398.114042,0.0003041,7]
[319582185,1710881472303,-500.0,0.0003041,2]
[319582186,1710881472317,-1371.22,0.0003041,2]
[319582187,1710881472331,-2685.54552,0.0003041,7]
[319582188,1710881472344,-2685.54552,0.0003041,7]
[319582189,1710881472357,-2685.54552,0.0003041,7]
[319582190,1710881472370,-500.0,0.0003041,2]
[319582191,1710881472384,-399.255426,0.0003041,7]
[319582192,1710881472397,-399.255426,0.0003041,7]
[319582193,1710881472412,-399.255426,0.0003041,7]
[319582194,1710881472428,-3426.25,0.0003041,2]
[319582195,1710881472444,-500.0,0.0003041,2]
[319582196,1710881472461,-2685.54552,0.0003041,7]
[319582197,1710881472475,-2685.54552,0.0003041,7]
[319582198,1710881472488,-2685.545516,0.0003041,7]
[319582199,1710881472502,-500.0,0.0003041,2]
[319582200,1710881472516,-399.255426,0.0003041,7]
[319582201,1710881472530,-399.255426,0.0003041,7]
[319582202,1710881472545,-41716.8,0.0003041,2]
[319582203,1710881472559,-399.255419,0.0003041,7]
[319582204,1710881472574,-1140.71,0.0003041,2]
[319582205,1710881472586,-500.0,0.0003041,2]
[319582206,1710881472600,-500.0,0.0003041,2]
[319582207,1710881472614,-2032.46,0.0003041,2]
[319582208,1710881472627,-151.0,0.0003041,7]
[319582209,1710881472641,-151.0,0.0003041,7]
[319582210,1710881472654,-151.0,0.0003041,7]
[319582211,1710881472668,-568.76,0.0003041,2]
[319582212,1710881472681,-502.93,0.0003041,2]
[319582213,1710881472698,-500.0,0.0003041,2]
[319582214,1710881472710,-242.185445,0.0003041,7]
[319582215,1710881472723,-500.0,0.0003041,2]
[319582216,1710881472737,-500.0,0.0003041,2]
[319582217,1710881472751,-696.75,0.0003041,2]
[319582218,1710881472765,-500.0,0.0003041,2]
[319582219,1710881472778,-925.78,0.0003041,2]
[319582220,1710881472792,-984.43,0.0003041,2]
[319582221,1710881472805,-588.05,0.0003041,2]
[319582222,1710881472819,-151.0,0.0003041,7]
[319582223,1710881472832,-151.0,0.0003041,7]
[319582224,1710881472844,-151.0,0.0003041,7]
[319582225,1710881472858,-500.0,0.0003041,2]
[319582226,1710881472873,-526.24,0.0003041,2]
[319582227,1710881472886,-5409.57,0.0003041,2]
[319582228,1710881472899,-1480.03,0.0003041,2]
[319582229,1710881472913,-609.55,0.0003041,2]
[319582230,1710881472927,-3345.1,0.0003041,2]
[319582231,1710881472941,-1954.98,0.0003041,2]
[319582232,1710881472954,-760.3,0.0003041,2]
[319582233,1710881472968,-500.0,0.0003041,2]
[319582234,1710881472981,-500.0,0.0003041,2]
[319582235,1710881472995,-500.0,0.0003041,2]
[319582236,1710881473009,-500.0,0.0003041,2]
[319582237,1710881473022,-1047.5,0.0003041,2]
[319582238,1710881473036,-3318.19,0.0003041,2]
[319582239,1710881473050,-192.75861113,0.0003041,2]
[319582240,1710881473066,-500.0,0.0003041,2]
[319582241,1710881473079,-500.0,0.0003041,2]
[319582242,1710881473100,-560.4,0.0003041,2]
[319582243,1710881473115,-500.0,0.0003041,2]
[319582244,1710881473128,-500.0,0.0003041,2]
[319582245,1710881473142,-501.70171396,0.0003041,2]
[319582246,1710881473155,-612.25,0.0003041,2]
[319582247,1710881473172,-500.0,0.0003041,2]
[319582248,1710881473187,-187.9566,0.0003041,7]
[319582249,1710881473201,-187.9566,0.0003041,7]
[319582250,1710881473214,-187.9566,0.0003041,7]
[319582251,1710881473228,-3136.96,0.0003041,2]
[319582252,1710881473248,-3674.95,0.0003041,2]
[319582253,1710881473261,-500.0,0.0003041,2]
[319582254,1710881473274,-500.0,0.0003041,2]
[319582255,1710881473287,-2034.06,0.0003041,2]
[319582256,1710881473300,-500.0,0.0003041,2]
[319582257,1710881473314,-187.9566,0.0003041,7]
[319582258,1710881473327,-187.9566,0.0003041,7]
[319582259,1710881473340,-187.956599,0.0003041,7]
[319582260,1710881473353,-501.72803033,0.0003041,2]
[319582261,1710881473366,-500.0,0.0003041,2]
[319582262,1710881473380,-698.17,0.0003041,2]
[319582263,1710881473392,-500.0,0.0003041,2]
[319582264,1710881473406,-778.16,0.0003041,2]
[319582265,1710881473421,-831.76,0.0003041,2]
[319582266,1710881473436,-682.7,0.0003041,2]
[319582267,1710881473448,-1779.03,0.0003041,2]
[319582268,1710881473464,-1229.68,0.0003041,2]
[319582269,1710881473478,-500.0,0.0003041,2]
[319582270,1710881473489,-500.0,0.0003041,2]
[319582271,1710881473499,-500.0,0.0003041,2]
[319582272,1710881473510,-1086.59,0.0003041,2]
[319582273,1710881473529,-500.0,0.0003041,2]
[319582274,1710881473547,-500.0,0.0003041,2]
[319582275,1710881473564,-2133.2,0.0003041,2]
[319582276,1710881473574,-820.91,0.0003041,2]
[319582277,1710881473586,-500.0,0.0003041,2]
[319582278,1710881473597,-500.0,0.0003041,2]
[319582279,1710881473607,-619.19,0.0003041,2]
[319582280,1710881473618,-974.2,0.0003041,2]
[319582281,1710881473628,-154.982423,0.0003041,7]
[319582282,1710881473639,-500.0,0.0003041,2]
[319582283,1710881473648,-502.32924567,0.0003041,2]
[319582284,1710881473663,-500.13,0.0003041,2]
[319582285,1710881473674,-508.51,0.0003041,2]
[319582286,1710881473686,-2843.1,0.0003041,2]
[319582287,1710881473696,-189.762637,0.0003041,7]
[319582288,1710881473707,-500.0,0.0003041,2]
[319582289,1710881473717,-189.762637,0.0003041,7]
[319582290,1710881473728,-189.762637,0.0003041,7]
[319582291,1710881473738,-3817.14,0.0003041,2]
[319582292,1710881473749,-500.0,0.0003041,2]
[319582293,1710881473769,-189.762637,0.0003041,7]
[319582294,1710881473783,-189.762637,0.0003041,7]
[319582295,1710881473795,-189.762644,0.0003041,7]
[319582296,1710881473807,-2344.09,0.0003041,2]
[319582297,1710881473819,-506.16,0.0003041,2]
[319582298,1710881473831,-921.73,0.0003041,2]
[319582299,1710881473842,-625.43,0.0003041,2]
[319582300,1710881473853,-839.37,0.0003041,2]
[319582301,1710881473864,-500.0,0.0003041,2]
[319582302,1710881473875,-1695.31,0.0003041,2]
[319582303,1710881473886,-2914.19,0.0003041,2]
[319582304,1710881473896,-201.56154,0.0003041,7]
[319582305,1710881473906,-500.0,0.0003041,2]
[319582306,1710881473917,-201.56154,0.0003041,7]
[319582307,1710881473928,-201.56154,0.0003041,7]
[319582308,1710881473940,-500.0,0.0003041,2]